bitfinex/quotes_BTCUSD_20260315
["timestamp","ask_amount","ask_price","bid_price","bid_amount"]
[1773612285607,0.0002,72204.0,72179.0,0.0016]
[1773612285817,0.0002,72204.0,72179.0,0.04203565]
[1773612286019,0.001,72200.0,72179.0,0.0016]
[1773612286225,0.12811315,72202.0,72180.0,0.06927126]
[1773612286427,0.12811315,72202.0,72180.0,0.07087126]
[1773612286834,0.12811315,72202.0,72181.0,0.0016]
[1773612287401,0.05886275,72201.0,72181.0,0.0016]
[1773612288147,0.05886275,72199.0,72172.0,0.06927894]
[1773612288321,0.05886275,72199.0,72182.0,0.0016]
[1773612290291,0.06925399,72198.0,72183.0,0.06926838]
[1773612290492,0.05886275,72197.0,72183.0,0.04293065]
[1773612290709,0.05886275,72197.0,72183.0,0.01659292]
[1773612291007,0.00064796,72199.0,72183.0,0.1749555]
[1773612291156,0.0002,72200.0,72183.0,0.1749555]
[1773612291515,0.001,72198.0,72183.0,0.1749555]
[1773612291732,0.0002,72200.0,72183.0,0.1749555]
[1773612292072,0.001,72199.0,72183.0,0.1749555]
[1773612292274,0.0710492,72204.0,72184.0,0.06288013]
[1773612292275,0.0002,72204.0,72184.0,0.06288013]
[1773612293194,0.0002,72204.0,72183.0,0.1749555]
[1773612293195,0.06944871,72204.0,72183.0,0.1749555]
[1773612293371,0.0002,72204.0,72183.0,0.1749555]
[1773612293543,0.0002,72204.0,72184.0,0.0016]
[1773612294276,0.00035641,72215.0,72191.0,0.061168]
[1773612294486,0.00035641,72215.0,72193.0,0.061168]
[1773612294627,0.06959455,72215.0,72193.0,0.061168]
[1773612295405,0.06959455,72215.0,72192.0,0.07085975]
[1773612295982,0.00035641,72215.0,72192.0,0.13202775]
[1773612296190,0.00035641,72215.0,72193.0,0.061168]
[1773612296713,0.06959413,72215.0,72194.0,0.06925783]
[1773612296870,0.06139707,72214.0,72194.0,0.06925783]
[1773612297278,0.06299707,72214.0,72192.0,0.06925975]
[1773612297489,0.06299707,72214.0,72193.0,0.0016]
[1773612297704,0.00035641,72215.0,72193.0,0.0016]
[1773612297901,0.0695941,72215.0,72194.0,0.061168]
[1773612298106,0.0695941,72215.0,72193.0,0.0016]
[1773612298699,0.0695941,72215.0,72194.0,0.06925783]
[1773612299065,0.00035641,72215.0,72194.0,0.13042583]
[1773612299287,0.00035641,72215.0,72195.0,0.061168]
[1773612299462,0.0002,72219.0,72201.0,0.061168]
[1773612299620,0.0002,72219.0,72202.0,0.0016]
[1773612299818,0.0002,72214.0,72202.0,0.0016]
[1773612300699,0.06927247,72231.0,72209.0,0.17255251]
[1773612300828,5e-05,72231.0,72212.0,0.15076604]
[1773612301032,5e-05,72231.0,72210.0,0.0016]
[1773612301033,0.06139707,72229.0,72210.0,0.0016]
[1773612301254,0.06139707,72229.0,72209.0,0.0016]
[1773612301908,0.06299707,72229.0,72209.0,0.0016]
[1773612303964,0.06922523,72228.0,72210.0,0.06924248]
[1773612304166,0.06139707,72227.0,72210.0,0.06924248]
[1773612306113,0.06139707,72227.0,72210.0,0.04320064]
[1773612306114,0.06139707,72225.0,72210.0,0.04320064]
[1773612306309,0.06139707,72225.0,72204.0,0.06924824]
[1773612306566,0.06139707,72225.0,72188.0,0.1698509]
[1773612306893,0.0615037,72225.0,72193.0,0.061168]
[1773612307094,0.06139707,72223.0,72193.0,0.061168]
[1773612307697,0.00010663,72225.0,72193.0,0.061168]
[1773612307698,0.0016,72222.0,72193.0,0.061168]
[1773612307941,0.06139707,72221.0,72193.0,0.061168]
[1773612308368,0.06923289,72220.0,72194.0,0.06925783]
[1773612308702,0.13062996,72220.0,72194.0,0.06925783]
[1773612309902,0.13062996,72220.0,72195.0,0.0016]
[1773612309903,0.06139707,72219.0,72195.0,0.0016]
[1773612310113,0.06139707,72219.0,72196.0,0.0016]
[1773612310309,0.06923481,72218.0,72197.0,0.06925495]
[1773612310750,0.06139707,72217.0,72198.0,0.0016]
[1773612311883,0.06151377,72217.0,72198.0,0.0016]
[1773612312629,0.06923673,72216.0,72199.0,0.06925303]
[1773612312880,0.1307505,72217.0,72200.0,0.061168]
[1773612312881,0.0001167,72217.0,72200.0,0.061168]
[1773612313035,0.06935292,72217.0,72200.0,0.061168]
[1773612313475,0.06935292,72217.0,72199.0,0.06925303]
[1773612313673,0.06935292,72217.0,72201.0,0.0016]
[1773612313851,0.0001167,72217.0,72202.0,0.061168]
[1773612314036,0.0001167,72217.0,72202.0,0.02159226]
[1773612314988,0.0001167,72217.0,72203.0,0.0692492]
[1773612315199,0.0001167,72217.0,72204.0,0.061168]
[1773612315409,1e-08,72219.0,72204.0,0.061168]
[1773612315605,0.06923482,72219.0,72203.0,0.0692492]
[1773612315813,0.06923481,72218.0,72203.0,0.0692492]
[1773612316362,0.06139707,72217.0,72200.0,0.0016]
[1773612316765,0.06139707,72217.0,72195.0,0.06925687]
[1773612317098,0.06923673,72216.0,72197.0,0.06925495]
[1773612317481,0.1306338,72216.0,72197.0,0.06925495]
[1773612317700,0.06923673,72216.0,72197.0,0.06925495]
[1773612317900,0.06923673,72216.0,72198.0,0.0016]
[1773612317901,0.06139707,72215.0,72198.0,0.0016]
[1773612319154,0.06923865,72214.0,72199.0,0.06925303]
[1773612319366,0.06923673,72216.0,72200.0,0.061168]
[1773612320238,0.06923673,72216.0,72199.0,0.06925303]
[1773612320516,0.06923673,72216.0,72203.0,0.0169]
[1773612320817,0.06923673,72216.0,72204.0,0.0016]
[1773612321687,0.06923673,72216.0,72204.0,0.06924728]
[1773612322295,0.06923673,72216.0,72205.0,0.0016]
[1773612323040,0.07023673,72216.0,72205.0,0.0016]
[1773612323178,1e-08,72219.0,72206.0,0.06486045]
[1773612323387,0.06923395,72219.0,72206.0,0.06486045]
[1773612323792,1e-08,72219.0,72208.0,0.06486045]
[1773612324592,0.06922638,72227.0,72208.0,0.06486045]
[1773612324807,0.06922703,72227.0,72208.0,0.06486045]
[1773612324991,0.06922739,72226.0,72208.0,0.06486045]
[1773612325194,0.06942479,72229.0,72207.0,0.06924536]
[1773612325195,0.0002,72229.0,72210.0,0.17255251]
[1773612325547,0.0002,72229.0,72212.0,0.06486045]
[1773612325762,0.0002,72229.0,72216.0,0.06486045]
[1773612327999,0.0002,72229.0,72217.0,0.06923577]
[1773612328173,0.0002,72229.0,72218.0,0.06486045]
[1773612328370,0.0002,72229.0,72219.0,0.0016]
[1773612328805,0.0002,72229.0,72219.0,0.06646045]
[1773612330180,0.0002,72229.0,72220.0,0.06923289]
[1773612330538,0.0002,72229.0,72221.0,0.0016]
[1773612330539,0.06220492,72228.0,72221.0,0.0016]
[1773612330690,0.06220492,72228.0,72216.0,0.0016]
[1773612331093,0.06220492,72228.0,72210.0,0.00170663]
[1773612331293,0.06942438,72229.0,72211.0,0.06646045]
[1773612331482,0.06942438,72229.0,72213.0,0.06486045]
[1773612332018,0.06942438,72229.0,72214.0,0.0016]
[1773612332391,0.06942438,72229.0,72215.0,0.06923769]
[1773612332796,0.06942438,72229.0,72216.0,0.06486045]
[1773612333352,0.03450982,72228.0,72214.0,0.07083853]
[1773612334341,0.06942438,72229.0,72214.0,0.07083853]
[1773612334706,0.06942438,72229.0,72214.0,0.06923853]
[1773612334903,0.06942438,72229.0,72215.0,0.0016]
[1773612335338,0.06942438,72229.0,72216.0,0.0016]
[1773612335807,0.06942438,72229.0,72214.0,0.06923853]
[1773612336102,0.06942438,72229.0,72216.0,0.0016]
[1773612336448,0.06942438,72229.0,72216.0,0.07083625]
[1773612338753,0.06942438,72229.0,72167.0,0.06928335]
[1773612338754,0.27403494,72210.0,72167.0,0.06928335]
[1773612338981,0.01363025,72203.0,72168.0,0.06646045]
[1773612339181,0.02564028,72201.0,72168.0,0.06646045]
[1773612339354,0.02564028,72199.0,72168.0,0.06646045]
[1773612339552,0.02724028,72198.0,72168.0,0.06646045]
[1773612340754,0.06925495,72197.0,72170.0,0.06486045]
[1773612341149,0.04051833,72196.0,72169.0,0.06928182]
[1773612341350,0.27708,72196.0,72171.0,0.0016]
[1773612341611,0.04051833,72195.0,72171.0,0.0016]
[1773612341830,0.04051833,72194.0,72171.0,0.0016]
[1773612342034,0.31759833,72194.0,72171.0,0.0016]
[1773612342289,0.04030728,72193.0,72171.0,0.0016]
[1773612342561,0.04030728,72192.0,72171.0,0.0016]
[1773612342766,0.06926071,72191.0,72171.0,0.0016]
[1773612343001,0.34634071,72191.0,72171.0,0.0016]
[1773612343202,0.38643758,72191.0,72172.0,0.0016]
[1773612343503,0.34634071,72191.0,72172.0,0.0016]
[1773612343658,0.34634071,72191.0,72163.0,0.06991483]
[1773612343859,0.34634071,72191.0,72164.0,0.06646045]
[1773612344055,0.34634071,72191.0,72172.0,0.00022]
[1773612344257,0.34634071,72191.0,72173.0,0.0016]
[1773612344481,0.03994711,72190.0,72174.0,0.0016]
[1773612344659,0.03812711,72188.0,72174.0,0.0016]
[1773612344843,0.03797728,72187.0,72174.0,0.0016]
[1773612345041,0.03797728,72186.0,72161.0,0.0692895]
[1773612345228,0.27708,72186.0,72162.0,0.0016]
[1773612345444,0.03797728,72185.0,72162.0,0.0016]
[1773612345651,0.328378,72184.0,72156.0,0.00027]
[1773612345849,0.03758612,72181.0,72156.0,0.00062467]
[1773612346097,0.03758612,72179.0,72156.0,0.00062467]
[1773612346405,0.03758612,72178.0,72153.0,0.0016]
[1773612346607,0.27743532,72178.0,72154.0,0.0016]
[1773612346767,0.03598612,72175.0,72154.0,0.0016]
[1773612346965,0.03704856,72173.0,72150.0,5e-05]
[1773612347163,0.31412856,72173.0,72150.0,0.00165]
[1773612347387,0.03864856,72172.0,72150.0,0.0016]
[1773612347588,0.03704856,72171.0,72150.0,0.0016]
[1773612347906,0.03704856,72169.0,72150.0,0.0016]
[1773612348056,0.27708,72169.0,72150.0,0.0016]
[1773612348259,0.03691111,72168.0,72150.0,0.0016]
[1773612348458,0.03691111,72167.0,72150.0,0.0016]
[1773612348677,0.0016,72166.0,72150.0,0.0016]
[1773612348898,0.06928566,72165.0,72145.0,5e-05]
[1773612349070,0.34636566,72165.0,72146.0,0.0016]
[1773612349440,0.17255251,72160.0,72145.0,1e-08]
[1773612349647,0.736822,72159.0,72135.0,5e-05]
[1773612349846,0.27708,72159.0,72135.0,5e-05]
[1773612350047,0.03406487,72158.0,72135.0,5e-05]
[1773612350321,0.03406487,72158.0,72140.0,5e-05]
[1773612350322,0.31045214,72158.0,72140.0,5e-05]
[1773612350725,0.31045214,72158.0,72129.0,0.0016]
[1773612351127,0.31045214,72158.0,72132.0,0.00012]
[1773612351128,0.06929334,72157.0,72132.0,0.00012]
[1773612351286,0.34637334,72157.0,72132.0,0.00012]
[1773612351482,0.34637334,72157.0,72142.0,0.00022]
[1773612351695,0.34637334,72157.0,72135.0,0.00022]
[1773612351914,0.34637334,72157.0,72135.0,0.00027]
[1773612352504,0.34737334,72157.0,72135.0,0.00022]
[1773612353326,0.34737334,72157.0,72128.0,0.06955044]
[1773612353327,0.34637334,72157.0,72102.0,0.0004644]
[1773612353490,0.34510502,72150.0,72102.0,0.0004644]
[1773612353661,0.17255251,72130.0,72102.0,0.0004644]
[1773612353862,0.05274978,72127.0,72102.0,0.0004644]
[1773612354084,0.05274978,72127.0,72092.0,0.07072038]
[1773612354085,2.570719,72126.0,72092.0,0.07072038]
[1773612354419,2.570719,72126.0,72091.0,0.16431172]
[1773612354420,0.12204312,72161.0,72111.0,0.07072038]
[1773612354573,0.0016,72154.0,72113.0,0.07072038]
[1773612354778,0.06929334,72158.0,72113.0,0.07072038]
[1773612355298,0.00165,72156.0,72115.0,0.07072038]
[1773612355454,0.00165,72156.0,72116.0,0.0016]
[1773612355659,0.00165,72156.0,72117.0,0.07072038]
[1773612356456,5e-05,72156.0,72117.0,0.07072038]
[1773612356667,0.2773,72156.0,72117.0,0.07072038]
[1773612357762,0.06929526,72155.0,72119.0,0.07072038]
[1773612357962,0.34654526,72155.0,72119.0,0.07072038]
[1773612358537,0.17292636,72150.0,72119.0,0.07072038]
[1773612358742,5e-05,72133.0,72119.0,0.07072038]
[1773612359132,5e-05,72133.0,72120.0,0.0016]
[1773612359339,5e-05,72133.0,72117.0,0.06933101]
[1773612359705,5e-05,72133.0,72119.0,0.07032985]
[1773612359910,5e-05,72133.0,72120.0,0.0016]
[1773612360861,5e-05,72133.0,72121.0,0.07072038]
[1773612361301,0.06935345,72147.0,72123.0,0.07072038]
[1773612361843,0.06935345,72147.0,72124.0,0.06932505]
[1773612362051,0.06935345,72147.0,72125.0,0.07072038]
[1773612362678,0.34660345,72147.0,72125.0,0.07072038]
[1773612363339,0.06061547,72145.0,72126.0,0.0016]
[1773612363541,0.33786547,72145.0,72127.0,0.0016]
[1773612363745,0.33786547,72145.0,72117.0,0.07072038]
[1773612364033,0.33786547,72145.0,72111.0,0.06944327]
[1773612364034,0.06930583,72144.0,72124.0,0.001]
[1773612364200,0.34655583,72144.0,72123.0,0.07072038]
[1773612364405,0.34655583,72144.0,72124.0,0.07072038]
[1773612364757,0.34455583,72144.0,72124.0,0.07072038]
[1773612365422,0.34455583,72144.0,72126.0,0.07072038]
[1773612365626,0.27725,72144.0,72126.0,0.07072038]
[1773612366084,0.06930679,72143.0,72128.0,0.07072038]
[1773612368249,0.17292636,72140.0,72123.0,0.00022]
[1773612368456,0.27725,72140.0,72124.0,0.0016]
[1773612368680,0.48906568,72140.0,72122.0,0.0016]
[1773612368908,0.48906568,72140.0,72123.0,0.0016]
[1773612368909,0.27725,72140.0,72123.0,0.0016]
[1773612369352,0.27725,72140.0,72117.0,0.07072038]
[1773612369353,0.13749565,72139.0,72111.0,0.00010669]
[1773612369550,0.13749565,72139.0,72089.0,0.00022]
[1773612369551,0.17292636,72120.0,72097.0,0.0016]
[1773612369757,0.13772154,72119.0,72100.0,0.00032679]
[1773612369966,0.13772154,72119.0,72100.0,1e-08]
[1773612369967,0.038884,72118.0,72100.0,1e-08]
[1773612370172,0.06933178,72117.0,72100.0,1e-08]
[1773612370354,0.17292636,72110.0,72100.0,1e-08]
[1773612370583,0.27725,72110.0,72100.0,1e-08]
[1773612372146,0.06933947,72109.0,72100.0,1e-08]
[1773612372510,0.34658947,72109.0,72100.0,1e-08]
[1773612374171,0.34658947,72109.0,72090.0,0.00027]
[1773612374379,0.34658947,72109.0,72090.0,0.00037685]
[1773612374380,0.0016,72108.0,72090.0,0.00037685]
[1773612374589,0.13917642,72108.0,72085.0,0.00187]
[1773612374813,0.13917642,72108.0,72081.0,0.00022]
[1773612374814,0.17292636,72100.0,72081.0,0.00022]
[1773612375026,0.17292636,72100.0,72077.0,0.0004644]
[1773612375027,0.17643169,72099.0,72077.0,0.0004644]
[1773612375239,0.45528169,72099.0,72077.0,0.0004644]
[1773612375444,0.17640552,72098.0,72077.0,0.0004644]
[1773612375648,0.45365552,72098.0,72077.0,0.0004644]
[1773612375855,0.13757642,72097.0,72077.0,0.0004644]
[1773612376081,0.41482642,72097.0,72077.0,0.0004644]
[1773612376283,0.06935197,72096.0,72077.0,0.0004644]
[1773612376491,0.38547507,72096.0,72077.0,0.0004644]
[1773612376698,0.34660197,72096.0,72078.0,0.07072038]
[1773612376911,0.34660197,72096.0,72077.0,0.0004644]
[1773612377116,0.04205695,72095.0,72077.0,0.0004644]
[1773612377326,0.0016,72094.0,72077.0,0.0004644]
[1773612377531,0.27885,72094.0,72077.0,0.0004644]
[1773612377702,0.17292636,72090.0,72077.0,0.0004644]
[1773612377926,0.27725,72090.0,72077.0,0.0004644]
[1773612378340,0.0693587,72089.0,72077.0,0.0004644]
[1773612378573,0.3466087,72089.0,72077.0,0.0004644]
[1773612379862,0.3466087,72089.0,72060.0,5e-05]
[1773612380038,0.26990473,72088.0,72066.0,0.07072038]
[1773612380253,0.06936063,72087.0,72066.0,0.07072038]
[1773612380497,0.34661063,72087.0,72066.0,0.07072038]
[1773612380912,0.34661063,72087.0,72067.0,0.0016]
[1773612381091,0.34661063,72087.0,72068.0,0.07072038]
[1773612381294,0.34661063,72087.0,72068.0,0.07094038]
[1773612382324,0.34161063,72087.0,72068.0,0.07094038]
[1773612383183,0.34161063,72087.0,72070.0,0.07051631]
[1773612384272,0.34261063,72087.0,72070.0,0.07051631]
[1773612384483,0.34261063,72087.0,72072.0,0.07051631]
[1773612384660,0.34161063,72087.0,72072.0,0.07051631]
[1773612386103,0.34161063,72087.0,72074.0,0.07051631]
[1773612386471,0.34161063,72087.0,72075.0,0.07051631]
[1773612388117,0.34161063,72087.0,72067.0,0.06937952]
[1773612388293,0.34161063,72087.0,72069.0,0.0016]
[1773612388699,0.34143401,72087.0,72070.0,0.0016]
[1773612389090,0.34143401,72087.0,71999.0,0.0004644]
[1773612389091,0.29143401,72087.0,72061.0,0.07051631]
[1773612389296,0.29143401,72087.0,72066.0,0.07051631]
[1773612389681,0.0016,72086.0,72066.0,0.07051631]
[1773612389825,0.27885,72086.0,72066.0,0.07051631]
[1773612390525,0.27885,72086.0,72060.0,0.00027]
[1773612390526,0.17292636,72080.0,72060.0,0.00027]
[1773612390736,0.0662431,72069.0,72041.0,0.18525353]
[1773612390953,0.23916946,72060.0,72041.0,0.00010696]
[1773612391161,0.0016,72059.0,72032.0,0.05437631]
[1773612391331,0.2386395,72051.0,72030.0,0.06946543]
[1773612391534,0.27725,72051.0,72032.0,0.18525353]
[1773612391750,0.27725,72051.0,72032.0,0.25576984]
[1773612391751,0.27707329,72051.0,72032.0,0.25576984]
[1773612392096,0.27707329,72051.0,72029.0,0.18525353]
[1773612392455,0.27707329,72051.0,72023.0,0.07051631]
[1773612392456,0.0662431,72049.0,72015.0,0.06947917]
[1773612392596,0.23916946,72040.0,72016.0,0.0016]
[1773612392797,0.06939817,72048.0,72009.0,0.07104331]
[1773612392798,0.06606635,72029.0,72009.0,0.000527]
[1773612393052,0.06939817,72048.0,72000.0,0.00415]
[1773612393053,0.0662431,72019.0,72000.0,0.00415]
[1773612393260,0.06606632,72019.0,72000.0,0.00415]
[1773612393404,0.06606632,72019.0,72005.0,0.00015588]
[1773612393851,0.0662431,72029.0,72005.0,0.00015588]
[1773612394054,0.0662431,72027.0,72005.0,0.00026272]
[1773612394369,0.27707329,72027.0,72005.0,0.00026272]
[1773612394730,0.06941937,72026.0,72005.0,0.00026272]
[1773612394909,0.001,72019.0,72006.0,0.0016]
[1773612395502,0.001,72019.0,72000.0,0.00415]
[1773612395718,0.0662431,72018.0,71998.0,0.22537721]
[1773612395928,0.0662431,72018.0,71998.0,0.15593146]
[1773612396130,0.00010635,72019.0,71998.0,0.22537758]
[1773612396329,0.17285597,72020.0,71998.0,0.22537758]
[1773612396530,0.06949457,72021.0,71998.0,0.22573383]
[1773612396752,0.06917703,72021.0,71999.0,0.0016]
[1773612396954,0.06917703,72021.0,71999.0,0.07035886]
[1773612397743,0.27707329,72027.0,71999.0,0.07035886]
[1773612398088,0.34649261,72027.0,71999.0,0.07035886]
[1773612398262,0.06941263,72033.0,71999.0,0.07035886]
[1773612398464,0.06940808,72038.0,72000.0,0.06944444]
[1773612398786,0.0662431,72037.0,72002.0,0.06825505]
[1773612399904,0.0662431,72035.0,72002.0,0.06825505]
[1773612400059,0.0662431,72035.0,72002.0,0.06925505]
[1773612400264,0.0662431,72035.0,72002.0,0.06825505]
[1773612401174,0.06941166,72034.0,72004.0,0.07051631]
[1773612402430,0.06941166,72034.0,72005.0,0.0016]
[1773612402726,0.06941166,72034.0,72006.0,0.07051631]
[1773612403179,0.06940814,72038.0,72006.0,0.07051631]
[1773612403380,0.0016,72043.0,72008.0,0.07051631]
[1773612403682,0.0678431,72043.0,72008.0,0.07051631]
[1773612405258,0.0662431,72043.0,72008.0,0.07051631]
[1773612405413,0.06940395,72042.0,72009.0,0.06943576]
[1773612405619,0.069398,72049.0,72011.0,0.07051631]
[1773612407519,5e-05,72050.0,72014.0,0.06943094]
[1773612407722,5e-05,72050.0,72015.0,0.07051631]
[1773612407926,0.0678431,72049.0,72015.0,0.07051631]
[1773612408075,5e-05,72050.0,72017.0,0.07051631]
[1773612408281,0.0016,72048.0,72017.0,0.07051631]
[1773612408973,0.0678431,72048.0,72017.0,0.07051631]
[1773612409214,0.0678431,72048.0,72017.0,0.07151631]
[1773612409546,0.06939914,72047.0,72017.0,0.06942805]
[1773612409719,0.0662431,72046.0,72017.0,0.06942805]
[1773612410101,0.0662431,72046.0,72018.0,0.0016]
[1773612410295,0.0662431,72046.0,72017.0,0.06942805]
[1773612410595,0.0662431,72046.0,72018.0,0.0016]
[1773612410798,0.0662431,72046.0,72017.0,0.06942805]
[1773612410972,0.0662431,72046.0,72019.0,0.0016]
[1773612411141,0.0662431,72046.0,72018.0,0.07051631]
[1773612411326,0.0662431,72046.0,72019.0,0.0016]
[1773612411728,0.06940106,72045.0,72020.0,0.0016]
[1773612412240,0.06940106,72045.0,72021.0,0.0016]
[1773612412454,0.0718217,72044.0,72021.0,0.0016]
[1773612412646,0.0718217,72044.0,72019.0,0.06942612]
[1773612413004,0.07192858,72044.0,72020.0,0.0016]
[1773612414340,0.06989429,72039.0,72012.0,0.06943287]
[1773612414563,0.0016,72038.0,72012.0,0.06943287]
[1773612414761,0.06989429,72037.0,72013.0,0.0016]
[1773612415207,0.06989429,72029.0,72011.0,0.00022]
[1773612415407,0.06989429,72029.0,72011.0,1e-08]
[1773612415813,0.13759249,72029.0,72011.0,1e-08]
[1773612416012,0.06989429,72027.0,72011.0,1e-08]
[1773612416222,0.06989429,72020.0,72002.0,0.00022]
[1773612416424,0.06989429,72018.0,72002.0,0.00022]
[1773612416587,0.06989429,72018.0,72002.0,0.06966232]
[1773612417020,0.06989429,72018.0,72002.0,0.00022]
[1773612417356,0.06989429,72018.0,72003.0,0.00010635]
[1773612417631,0.06989429,72018.0,71996.0,0.06966819]
[1773612417784,0.07100113,72018.0,71996.0,0.06966819]
[1773612417980,0.07100113,72018.0,71996.0,0.00022]
[1773612418220,0.06989429,72017.0,71996.0,0.06966817]
[1773612418597,0.06989429,72015.0,72004.0,0.00022]
[1773612418751,0.06989429,72015.0,71997.0,0.00022]
[1773612419073,0.06989429,72015.0,71995.0,5e-05]
[1773612419288,0.00156,72015.0,71996.0,0.07223109]
[1773612419457,0.06942901,72016.0,71996.0,0.07223109]
[1773612419656,0.06942901,72016.0,71995.0,5e-05]
[1773612419884,0.06942901,72016.0,71994.0,0.07126981]
[1773612420232,0.001,72015.0,71994.0,0.07126981]
[1773612420670,0.06942901,72016.0,71994.0,0.07126981]
[1773612420876,0.06942901,72016.0,71995.0,0.00156]
[1773612421285,0.06989429,72015.0,71995.0,0.00156]
[1773612421772,0.07145429,72015.0,71995.0,0.00156]
[1773612422395,0.00156,72015.0,71995.0,0.00156]
[1773612422809,0.06943094,72014.0,71996.0,0.0694483]
[1773612423020,0.06941937,72026.0,71997.0,0.07223109]
[1773612423227,0.0694107,72035.0,72001.0,0.17200997]
[1773612423431,0.0694107,72035.0,72002.0,0.07223109]
[1773612423632,0.0694107,72035.0,72002.0,0.07379109]
[1773612424086,0.06939961,72047.0,72002.0,0.07379109]
[1773612424276,0.06944652,72050.0,72021.0,0.07223109]
[1773612424476,0.06944652,72050.0,72003.0,0.03234816]
[1773612424477,0.06944652,72050.0,72023.0,0.07223109]
[1773612424682,0.06944652,72050.0,72025.0,0.07223109]
[1773612424905,0.06944652,72050.0,72027.0,0.06941841]
[1773612425403,0.0002,72049.0,72027.0,0.01941841]
[1773612426963,0.06939817,72048.0,72027.0,0.02041841]
[1773612427396,0.06939817,72048.0,72027.0,0.01941841]
[1773612427956,0.06959817,72049.0,72027.0,0.01941841]
[1773612428560,0.06989429,72048.0,72028.0,0.00156]
[1773612429341,0.06939914,72047.0,72029.0,0.06941648]
[1773612430028,0.06939914,72047.0,72024.0,0.06942046]
[1773612430029,0.06989429,72046.0,72024.0,0.06942046]
[1773612430275,0.06989429,72046.0,72025.0,0.00156]
[1773612430473,0.06989429,72046.0,72026.0,0.00156]
[1773612430685,0.06989429,72046.0,72027.0,0.00156]
[1773612431057,0.06989429,72046.0,72022.0,0.06942228]
[1773612431248,0.06989429,72046.0,72023.0,0.00156]
[1773612431647,0.06989429,72044.0,72024.0,0.00156]
[1773612432051,0.06989429,72044.0,72010.0,0.11049142]
[1773612432249,0.06989429,72044.0,72011.0,0.00156]
[1773612432437,0.06989429,72044.0,72012.0,0.00156]
[1773612432639,0.17360532,72040.0,72013.0,0.00156]
[1773612432833,0.07145429,72039.0,72013.0,0.00156]
[1773612434121,0.06989429,72037.0,72014.0,0.06943094]
[1773612436116,0.06989429,72035.0,72013.0,0.07099094]
[1773612436480,0.06989429,72035.0,72013.0,0.00156]
[1773612436673,0.06989429,72035.0,72014.0,0.00156]
[1773612437015,0.06989429,72035.0,72006.0,0.00156]
[1773612437214,0.06989429,72035.0,72007.0,0.00156]
[1773612437540,0.06989429,72029.0,72007.0,0.00156]
[1773612437741,0.20741605,72036.0,72008.0,0.04146912]
[1773612437881,0.06940973,72036.0,72008.0,0.04146912]
[1773612438087,0.06940973,72036.0,72009.0,0.06943576]
[1773612438284,0.13930402,72036.0,72009.0,0.06943576]
[1773612438732,0.06940973,72036.0,72010.0,0.04105618]
[1773612438956,0.0694024,72044.0,72011.0,0.04105618]
[1773612438957,0.06940299,72043.0,72011.0,0.04105618]
[1773612440082,0.06940299,72043.0,72013.0,0.04018654]
[1773612440270,0.06989429,72043.0,72014.0,0.06943094]
[1773612441249,0.0002,72037.0,72014.0,0.06943094]
[1773612441799,0.06989429,72036.0,72015.0,0.00156]
[1773612444685,0.0694107,72035.0,72016.0,0.06942901]
[1773612445966,0.1309515,72035.0,72016.0,0.06942901]
[1773612446212,0.0694107,72035.0,72016.0,0.06942901]
[1773612446416,0.0615408,72034.0,72016.0,0.06942901]
[1773612447234,0.06941263,72033.0,72016.0,0.06942901]
[1773612447445,0.0615408,72032.0,72017.0,0.00156]
[1773612447774,0.0615408,72032.0,72016.0,0.015]
[1773612448032,0.0615408,72032.0,72018.0,0.00156]
[1773612448238,0.0615408,72029.0,72004.0,0.00156]
[1773612448414,0.0615408,72027.0,72008.0,0.06943631]
[1773612448578,0.0615408,72027.0,72007.0,0.00156]
[1773612449035,0.06941937,72026.0,71996.0,0.06944813]
[1773612449247,0.0615408,72025.0,71997.0,0.07100733]
[1773612449583,0.0615408,72025.0,71997.0,0.07136358]
[1773612449787,0.0615408,72025.0,71997.0,0.11420202]
[1773612450004,0.0615408,72025.0,71998.0,0.00156]
[1773612450207,0.0615408,72025.0,71999.0,0.04412341]
[1773612450404,0.0615408,72025.0,72000.0,0.00156]
[1773612450581,0.06941937,72026.0,71997.0,0.00035625]
[1773612450582,0.0615408,72019.0,71997.0,0.00035625]
[1773612450797,0.0615408,72019.0,71998.0,0.00156]
[1773612451093,0.06941937,72026.0,72000.0,0.06944444]
[1773612451479,0.06941937,72026.0,72001.0,0.04407095]
[1773612451680,0.06941937,72027.0,72001.0,0.04407095]
[1773612451894,0.06941937,72027.0,71998.0,0.06944444]
[1773612451895,0.0615408,72026.0,71998.0,0.06944444]
[1773612452120,0.0615408,72026.0,72002.0,0.00156]
[1773612452288,0.0615408,72019.0,72002.0,0.00156]
[1773612452787,0.0615408,72019.0,72003.0,0.00156]
[1773612453141,0.0615408,72017.0,72002.0,0.0002885]
[1773612453339,0.0615408,72017.0,71997.0,0.06980314]
[1773612453340,0.06136403,72017.0,72003.0,0.00156]
[1773612453544,0.06136403,72017.0,71997.0,0.00035625]
[1773612453754,0.06136403,72017.0,71995.0,0.01527]
[1773612453949,0.06172028,72017.0,71996.0,0.00156]
[1773612454156,0.06172028,72017.0,72002.0,0.015]
[1773612454360,0.06172028,72017.0,72000.0,0.00156]
[1773612454560,0.06172028,72017.0,71999.0,0.00156]
[1773612455011,0.06172028,72017.0,71986.0,0.06945794]
[1773612455012,0.17360532,72010.0,71986.0,0.06945794]
[1773612455214,0.17360532,72000.0,71985.0,5e-05]
[1773612455392,0.06943672,72008.0,71985.0,5e-05]
[1773612455393,0.00156,72005.0,71990.0,5e-05]
[1773612455588,0.06943672,72008.0,71990.0,5e-05]
[1773612455589,0.0615408,72007.0,71990.0,5e-05]
[1773612455791,0.0615408,72005.0,71985.0,5e-05]
[1773612456228,0.0615408,72005.0,71983.0,0.00156]
[1773612457024,0.06136404,72005.0,71983.0,0.00156]
[1773612457226,0.06944058,72004.0,71984.0,0.06945987]
[1773612457875,0.06944058,72004.0,71985.0,0.06105414]
[1773612458222,0.06943878,72006.0,71985.0,0.06105414]
[1773612458449,0.07043822,72007.0,71985.0,0.06105414]
[1773612458679,0.06943878,72006.0,71985.0,0.06105414]
[1773612459110,0.06943061,72015.0,71985.0,0.06105414]
[1773612459313,0.06942458,72021.0,71987.0,0.06029758]
[1773612459465,0.06942515,72020.0,71987.0,0.06065383]
[1773612459858,0.06941779,72028.0,71987.0,0.06065383]
[1773612460061,0.0002,72045.0,71990.0,0.17360532]
[1773612460283,0.06961133,72035.0,71993.0,0.00021897]
[1773612460475,0.06961118,72035.0,72001.0,0.00021897]
[1773612460671,0.06961118,72035.0,72003.0,0.00021897]
[1773612460893,0.0002,72035.0,72005.0,0.0288233]
[1773612461095,0.0002,72037.0,72007.0,0.03047202]
[1773612461294,0.06960952,72037.0,72009.0,0.03047202]